{"text_format":"3","workbook":"xlsx","n_sheets":1,"sheets":["2025年度"],"not_rendered":{"defined_names":2},"read":"whole","date_system":"1900"}

{"sheet":"2025年度","index":0,"n_rows":86,"n_cols":32,"rows_kept":86,"merged":[[0,0,0,26],[1,0,5,0],[1,1,1,8],[1,9,1,31],[2,1,5,1],[2,2,5,2],[2,3,5,3],[2,4,5,4],[2,5,2,6],[2,7,5,7],[2,8,5,8],[2,9,2,26],[2,27,5,27],[2,28,2,29],[2,30,5,30],[2,31,5,31],[3,5,5,5],[3,6,5,6],[3,9,5,9],[3,10,3,24],[3,25,5,25],[3,26,5,26],[3,28,5,28],[3,29,5,29],[4,10,5,10],[4,11,5,11],[4,12,4,16],[4,17,4,22],[4,23,5,23],[4,24,5,24],[6,1,6,7],[7,5,7,6],[8,5,8,6],[17,5,17,6],[18,5,18,6],[19,5,19,6],[20,5,20,6],[21,5,21,6],[22,5,22,6],[23,5,23,6],[24,5,24,6],[25,5,25,6],[26,5,26,6],[27,5,27,6],[28,5,28,6],[29,5,29,6],[34,5,34,6],[63,5,63,6],[84,5,84,6]]}
["盐边县2025年度各级财政衔接推进乡村振兴补助资金年度项目计划"]
["序号","项目基本情况",{"$nulls":7},"项目安排情况"]
[null,"项目类型\n①到户奖补类\n②产业发展类—产业\n③产业发展类—基建\n④基建设施类","项目名称","项目主管部门","项目实施单位","项目实施地点",null,"建设内容及规模","项目库项目编号","项目资金来源（万元）",{"$nulls":17},"项目预期目标","受益脱贫群众和监测对象",null,"项目利益联结机制","形成资产的项目，明确的后续管护责任"]
[{"$nulls":5},"乡（镇）","村",null,null,"总投入","衔接资金",{"$nulls":14},"其它脱贫县整合资金","其它资金",null,"户数","人数"]
[{"$nulls":10},"是否纳入脱贫县整合方案","中省市县投入衔接资金小计","中央资金",{"$nulls":4},"省级资金",{"$nulls":5},"市级\n资金","县级\n资金"]
[{"$nulls":12},"巩固拓展脱贫攻坚成果和乡村振兴任务","以工代赈任务","少数民族发展任务","欠发达国有农场巩固提升任务","欠发达国有林场巩固提升任务","巩固拓展脱贫攻坚成果和乡村振兴任务","以工代赈任务","少数民族发展任务","欠发达国有农场巩固提升任务","欠发达国有林场巩固提升任务","农村脱贫残疾人巩固提升任务"]
[{"$nulls":9},{"$f":"SUM(J8:J86)","v":{"v":22892.938,"d":"22892.94"}},null,{"$f":"SUBTOTAL(9,M7:Y7)","v":{"v":10605.498,"d":"10605.50"}},{"v":1672,"d":"1672.00"},{"v":0,"d":"0.00"},{"v":570,"d":"570.00"},{"v":0,"d":"0.00"},{"v":0,"d":"0.00"},{"v":6148.998,"d":"6149.00"},{"v":0,"d":"0.00"},{"v":0,"d":"0.00"},{"v":0,"d":"0.00"},{"v":0,"d":"0.00"},{"v":0,"d":"0.00"},{"v":864.5,"d":"864.50"},{"v":1350,"d":"1350.00"},{"v":0,"d":"0.00"},12287.44]
[1,"其他类","易地扶贫搬迁贷款贴息项目","县农业农村局","盐边发展（集团）有限责任公司","全县",null,"计划实施易地扶贫搬迁贷款贴息资金项目1个，对全县易地扶贫搬迁项目贷款还本付息，其中：归还贷款本金230万元(易地扶贫搬迁长期低息贷款2016年还108万元、2017年还122万元）、支付贷款利息155万元。","5300001239242603",{"$f":"L8+AA8","v":{"v":385,"d":"385.00"}},null,{"v":385,"d":"385.00"},{"v":185,"d":"185.00"},{"$nulls":4},{"v":200,"d":"200.00"},{"$nulls":9},"该项目实施可有效解决易地扶贫搬迁户900户4211人贷款贴息资金短缺问题，减轻地方政府和搬迁群众的债务负担，降低债务风险，从而保障搬迁项目的顺利实施和后续发展，巩固脱贫成效，衔接推进乡村振兴。",900,4218,"按规定可不建立（仅限非经营性项目和到户项目）"]
[2,"其他类","盐边县2025年山洪灾害危险区巡查责任人履职补助","县水利局","县水利局","全县",null,"计划实施全县山洪灾害危险区公益性岗位安置项目1个，据实安置山洪灾害危险区脱贫户、监测户公益性岗位93个。","5300001239242872",33.48,null,33.48,{"$nulls":5},33.48,{"$nulls":9},"有效防范山洪灾害危险，保护山洪灾害危险区444户1954人生命财产安全，保障全县山洪灾害危险区公益性岗位人员经费，增加就业务工收入，巩固脱贫成果。",93,93,"按规定可不建立（仅限非经营性项目和到户项目）"]
[3,"②产业发展类—产业","省级晚熟芒果产业集群项目","县农业农村局","县农业农村局、各相关乡（镇）","红格镇、桐子林镇、惠民镇等","金河村、金沙村、新林村等","计划实施晚熟芒果产业集群建设项目，一是标准化基地提升项目950亩（其中智慧云空间弥雾系统350亩、新品种改良600亩）；二是建设3000平方米农产品分选集散场中心；三是区域品牌打造；四是科技人才支撑能力建设项目（包括芒果新品种的引进、专家团队建设）等内容。","5300001239431606",{"v":3027.5,"d":"3027.50"},null,{"v":900,"d":"900.00"},{"$nulls":5},{"v":900,"d":"900.00"},{"$nulls":8},{"v":2127.5,"d":"2127.50"},"推动区域内芒果产业发展资源、要素高度聚集，建设全产业链开发、全价值链提升的现代农业产业集群，加快构建现代化芒果产业体系，把盐边芒果产业打造成为全国芒果产业发展的标杆和巩固拓展脱贫攻坚成果同乡村振兴有效衔接的样板。",1460,6132,"实施“品种、品牌、品质”三大提升工程和“产品、物流、融合”三大升级行动，抓好品种结构改良，实现基地提质增效，着力打造“攀果”区域公共品牌，高标准建设区域农产品深加工物流中心，把盐边芒果产业打造成为全国芒果产业发展的标杆和巩固拓展脱贫攻坚成果同乡村振兴有效衔接的样板，为“滋味盐边”贡献“不缺味、不变味、不串味”的“品种最丰、品质最优、特色最鲜”的绿色、健康可持续发展的优势产业。","项目建成后，资产确权移交至村集体进行后续管护"]
[4,"②产业发展类—产业","省级优势特色产业乡镇建设项目","县农业农村局","县农业农村局、国胜乡","国胜乡","大毕村、机房村等","计划实施国胜乡2025年省级优势特色产业乡镇建设，一是茶树良种化建设项目（引进名山早311、名山特早213新品种茶苗改良，福鼎大白、福选9号现有茶树，共计80亩）；二是初加工生产能力提升项目；三是新产业新业态培育；四是开展社会化组织服务等内容。","5300001240735821",{"v":2007,"d":"2007.00"},null,{"v":400,"d":"400.00"},{"$nulls":5},{"v":400,"d":"400.00"},{"$nulls":8},{"v":1607,"d":"1607.00"},"以建设省级现代农业园区为目标，加强对当地抗逆性强的茶树种质资源的筛选、收集和保存，加大优良茶树品种的引进力度，加快茶叶良种繁育场建设。适度扩大茶叶基地规模，提质升级现有茶园标准化管理水平，推进绿色、有机茶园建设。加快推进茶叶精深加工发展，拓宽产业链条，深入挖掘产业附加值。实施品牌引领战略，提高产品市场竞争力，逐步将国胜茶推向全国市场。",34,119,"农户带动面达90%以上，尤其是带动盐边北部地区泽沐、岩口等彝族区域贫困群众达到75%以上。主导产业人均可支配收入力争突破2.8万元，力争高于全县农村人口人均可支配收入23%以上。项目实施后，帮扶人数达到1300人左右，人均增收860元左右。同时通过产业发展，逐步形成以大毕、大石房、小坪等村为代表的茶叶种植园区全面实现产业化，集观光、采摘、加工为一体的种养销产业融合发展乡村振兴示范村。","项目建成后，资产确权移交至村集体进行后续管护"]
[5,"②产业发展类—产业","红格镇鲊石村鹌鹑养殖示范基地项目","县委组织部、县农业农村局、县财政局","红格镇","红格镇","鲊石村","项目总投资为150万元。预投资60万元，修建鸟笼厂房1座，建筑规格55m×15m，摆放8排，每排35组，共280组，可饲养鹌鹑10万羽；预投资50万元，修建长1.3m、宽0.8m、高1.8m直立式六层一次一清排粪设施及房内养殖配套设施；预投资10万元，建设100平方米储蛋室及管理房；预投资30万元，配套水池、铲车、动物无害化处理及粪便无害化处理设备等设施。","5300001245834801",{"v":150,"d":"150.00"},null,{"v":110,"d":"110.00"},{"v":70,"d":"70.00"},{"$nulls":4},{"v":40,"d":"40.00"},{"$nulls":8},{"v":40,"d":"40.00"},"项目建成后，形成的资产归鲊石村村集体所有，出租厂房给四川九升食品有限公司养殖鹌鹑，获取租金和出栏提成，同时由公司回收鹌鹑蛋和肉，预计村集体每年收益10万元左右，同步带动本村及周边10余户农户就业，有效推动特色产业发展，助力农民增收致富。",2,8,"项目建设和运营全过程将充分发挥扶持和带动作用。将低收入群体作为扶持的主要对象，提供短期建设用工岗位6个、长期运营用工岗位2个，可实现务工收入4万元/人/年。建成后实行规模化、标准化、开放化管理，提供技术支持和培训，鼓励农户入股加盟，开拓销路定期分红，预计带动本村及周边10余户农户就业，激励产业发展，实现农民收入的持续增长。","项目建成后，资产确权移交至鲊石村村集体进行后续管护"]
[6,"②产业发展类—产业","永兴镇新胜村鹌鹑养殖示范基地项目","县委组织部、县农业农村局、县财政局","永兴镇","永兴镇","新胜村","项目总投资150万元。预投资60万元，修建鹌鹑养殖厂房1座，建筑规格长50米，宽20米，摆放8排，每排35组，共280组，饲养鹌鹑10万余只；预投资50万元，修建长1.3m、宽0.8m、高1.8m直立式六层一次一清排粪设施及房内养殖配套设施；预投资10万元，建设100平方米储蛋室及管理房；预投资30万元，配套建设动物无害化处理及粪便无害化处理设备设施。","5300001245831178",{"v":150,"d":"150.00"},null,{"v":110,"d":"110.00"},{"v":70,"d":"70.00"},{"$nulls":4},{"v":40,"d":"40.00"},{"$nulls":8},{"v":40,"d":"40.00"},"项目建成后，资产权属归新胜村村集体经济组织所有，村集体出租场地给养殖带头人，预计租金收益约6万元/年，每年鹌鹑蛋销售提成收取4万元，村集体每年收益可达10万元左右。项目建成后，预计吸纳本村及周边10余户农户就业，助力农民收入稳步提升，持续拓宽增收渠道。",32,118,"项目建设阶段，为低收入群体提供7个短期用工岗位，预计实现务工收入4万元/人/年。项目采用规模化、标准化、无公害化的饲养管理模式，有力推动全村生产方式转型升级。项目建成后，预计吸纳本村及周边10余户农户就业，助力农民收入稳步提升，持续拓宽增收渠道。","项目建成后，资产确权移交至新胜村村集体进行后续管护"]
[7,"②产业发展类—产业","红宝苗族彝族乡核桃箐村鹌鹑养殖示范基地项目","县委组织部、县农业农村局、县财政局","红宝苗族彝族乡","红宝苗族彝族乡","核桃箐村","项目总投资150万元。预投资60万元，修建鸟笼厂房1座，建筑规格55m×15m，摆放8排，每排35组，共280组，可饲养鹌鹑10万羽；预投资50万元，修建长1.3m、宽0.8m、高1.8m直立式六层一次一清排粪设施及房内养殖配套设施；预投资10万元，建设100平方米储蛋室及管理房；预投资30万元，配套建设动物无害化处理及粪便无害化处理设备设施。","5300001245844433",{"v":150,"d":"150.00"},null,{"v":110,"d":"110.00"},{"v":70,"d":"70.00"},{"$nulls":4},{"v":40,"d":"40.00"},{"$nulls":8},{"v":40,"d":"40.00"},"项目建成以后，形成的资产归核桃箐村村集体经济所有，村集体出租场地供四川九升食品有限公司养殖，每年预计饲养鹌鹑10万羽，年产鹌鹑蛋40万斤，村集体每年收益预计10万元左右，同步带动周边农户养殖，预计提供就业岗位8个，解决当地村民就业，实现农民收入的持续增长，提高鹌鹑养殖基地示范效应。",76,317,"项目建设和运营过程中将低收入群体作为项目扶持的主要对象，提供项目建设短期用工岗位8个，预计实现务工收入4万元/人/年，项目实行规模化、标准化、无公害化的饲养管理，将带动全村生产方式进一步转变，预计带动本村及周边10余户农户就业，实现农民收入的持续增长。","项目建成后，资产确权移交至核桃箐村村集体进行后续管护"]
[8,"②产业发展类—产业","共和乡太坪村中药材初加工项目","县委组织部、县农业农村局、县财政局","共和乡","共和乡","太坪村","项目总投资150万元。预投资80万元，进行初加工车间及厂房改造；预投资25万元，建设管理用房及仓库建设；预投资45万元，配备切片机2套、筛选设备1套、烘干设备1套、装卸设备1套。","5300001245874909",{"v":150,"d":"150.00"},null,{"v":110,"d":"110.00"},{"v":70,"d":"70.00"},{"$nulls":4},{"v":40,"d":"40.00"},{"$nulls":8},{"v":40,"d":"40.00"},"项目建成后，形成资产归太坪村村集体所有，由村集体经济组织优先聘请有技术有能力的村民进行生产加工预计提供约10个就业岗位。项目投产后，预计可实现集体经济收入30余万元，年盈利16万元，种植户每亩可增加收入2000元以上，从而带动群众种植的积极性，实现共富增收。",41,137,"项目建成后将带动共和乡林下中药材产业发展，为省级林草中药材规范化种植示范基地增添发展动能。项目建设和运营过程中将为低收入群体提供短期用工岗位约20个、人均实现务工收入约5—8万元，项目建成后，为低收入群体提供约10个就业岗位，对林下中药材进行初加工后，有助于产品品质及溢价提升，提高农户种植效益和积极性，推动万亩中药材种植园区农业产业化发展，助力共同富裕。","项目建成后，资产确权移交至太坪村村集体进行后续管护"]
[9,"②产业发展类—产业","格萨拉彝族乡大坪子村松露产学研基地建设项目","县委组织部、县农业农村局、县财政局","格萨拉彝族乡","格萨拉彝族乡","大坪子村","项目总投资150万元。预投资20万元，建设松露标准种植示范基地160亩，根据松露生长习性，规划不同品种试验区、核心种植区、对比示范区，配套滴灌系统等设施；预投资130万元，利用格萨拉幼儿园闲置资产改建松露特色农业产学研融合交易中心1000平方米及相关配套设施，打造研学场景，销售各类松露及土豆、荞麦等农特产品。","5300001241954532",{"v":150,"d":"150.00"},null,{"v":110,"d":"110.00"},{"v":70,"d":"70.00"},{"$nulls":4},{"v":40,"d":"40.00"},{"$nulls":8},{"v":40,"d":"40.00"},"项目建成后形成的资产归大坪子村村集体所有，引入市场主体开展经营，项目建成后，将提供约5个就业岗位，预计每年可为集体经济增加收入12万元，促进村集体经济持续增收。",191,960,"项目运营后将带动农特产品、种植等产业发展，项目建设和运营过程中将为低收入群体提供短期用工岗位约20个、实现务工收入约15万元，项目建成后，将为低收入群体提供约5个就业岗位，解决农产品销售难、价格无保障等难题，提高农产品价值和农户种植效益，推动农业产业化发展，助力农民增收致富。","项目建成后，资产确权移交至大坪子村村集体进行后续管护"]
[10,"②产业发展类—产业","温泉彝族乡野麻地村金烟叶烘烤基地建设项目","县委组织部、县农业农村局、县财政局","温泉彝族乡","温泉彝族乡","野麻地村","项目总投资150万元。预投资90万元，新建烤烟房2座，共计40间（长8米、宽3.7米）；预投资35万元，平整场地及硬化地面800㎡，烟夹1.4万个，建设管理用房150㎡，烟叶分选及堆放棚500㎡；预投资25万元，新增变压器2台。协调烟草公司配备智能化温控、湿控设备，确保烤烟烘烤过程精准控制，提升烤烟品质。","5300001245884852",{"v":150,"d":"150.00"},null,{"v":110,"d":"110.00"},{"v":70,"d":"70.00"},{"$nulls":4},{"v":40,"d":"40.00"},{"$nulls":8},{"v":40,"d":"40.00"},"项目建成后，烤房出租每年增加集体经济6万余元，土地流转增加村集体经济5万余元，预计每年增加村集体经济11万元以上，为周边群体提供短期用工岗位60余个，带动周边150余户群众增收。",127,612,"该项目可辐射周边1000余亩烤烟种植区域，带动150余户群众种烟致富，将大力促进温泉彝族乡烤烟产业发展，项目建成后为周边群体提供短期用工岗位60个、实现务工收入40余万元，通过烟区规划、土地流转、提供就业等方式提高区域烤烟产量和群众经济收入。","项目建成后，资产确权移交至野麻地村村集体进行后续管护"]
[11,"①到户奖补类","雨露计划补助","县农业农村局","县农业农村局","全县",null,"计划实施雨露计划补助项目1项，对全县脱贫户及监测对象（脱贫不稳定户、边缘易致贫户、突发严重困难户）中符合条件的中、高职学生发放雨露计划补助。","5300001239244502",{"v":210,"d":"210.00"},null,{"v":210,"d":"210.00"},101.85,{"$nulls":4},73.37,{"$nulls":5},34.78,{"v":0,"d":"0.00"},null,null,"有效解决脱贫户及监测对象子女教育保障问题，进一步隔断贫困代际传递。",null,{"$f":"210/0.15","v":1400},"按规定可不建立（仅限非经营性项目和到户项目）"]
[12,"其他类","防贫保项目","县农业农村局","县农业农村局","全县",null,"为家庭人均纯收入在12000元以下脱贫户、监测户及未消除风险监测户1816人购买防贫保险，每人补助330元，以实际承保名单人数为准。医疗救助保险每人限额5万元、产业致贫每户限额2万元。","5300001239244799",{"v":59.928,"d":"59.93"},null,{"v":59.928,"d":"59.93"},{"$nulls":12},{"v":59.928,"d":"59.93"},null,null,"防止监测户因病、因灾、因意外事故等导致返贫致贫，切实巩固提升脱贫成效。",null,1816,"按规定可不建立（仅限非经营性项目和到户项目）"]
[13,"其他类","扶贫保项目","县农业农村局","县农业农村局","全县",null,"计划实施全县脱贫户、监测户购买扶贫保，计划投保4208户。每户投保费用为42元，其中：财政补贴80%、农户自缴20%。投保人理赔限额：意外伤害身故、意外伤害伤残每户限额8万元，意外伤害住院医疗每户限额0.8万元，疾病死亡每户限额0.2万元（每户对应的每项保险金额按保险事故发生时其家庭成员人数进行平均分摊）。","5300001239245090",17.67,null,14.14,{"$nulls":12},14.14,null,3.53,"提高抵御风险能力，防止因意外事故返贫致贫，持续巩固脱贫攻坚成果。",3986,18018,"按规定可不建立（仅限非经营性项目和到户项目）"]
[14,"其他类","项目管理费","县农业农村局","县农业农村局","全县",null,"计划实施全县项目管理费项目1项，用于全县巩固拓展脱贫攻坚成果及衔接推进乡村振兴项目设计、监理及项目管理、验收等费用。","5300001239270077",{"v":79.8,"d":"79.80"},null,{"v":79.8,"d":"79.80"},{"v":16.4,"d":"16.40"},{"$nulls":4},{"v":42,"d":"42.00"},{"$nulls":5},{"v":8.4,"d":"8.40"},{"v":13,"d":"13.00"},null,null,"进一步规范项目管理及资金使用效益，提升项目质量，确保项目顺利实施",3986,18018,"按规定可不建立（仅限非经营性项目和到户项目）"]
[15,"②产业发展类—产业","脱贫户小额信贷贴息项目","县农业农村局","县农业农村局、县财政局","全县",null,"计划实施2025年全县脱贫人口小额信贷贴息资金项目1个，对全县脱贫户、监测户扶贫小额信贷予以贴息，目前贷款余额474笔1907.11万元。","5300001239286582",{"v":89,"d":"89.00"},null,{"v":89,"d":"89.00"},{"v":15,"d":"15.00"},{"$nulls":4},{"v":40,"d":"40.00"},{"$nulls":6},{"v":34,"d":"34.00"},null,null,"通过为脱贫户提供财政贴息，减轻脱贫户的贷款压力，有助于脱贫户更加积极地利用贷款资金发展生产，提高收入水平，持续巩固脱贫攻坚成果。",504,2071,"按规定可不建立（仅限非经营性项目和到户项目）"]
[16,"其他类","住房建设贷款贴息项目","县农业农村局","县农业农村局、县财政局","全县",null,"计划实施2025年全县脱贫户住房建设贷款贴息资金项目1个，对全县脱贫户住房建设贷款予以贴息，目前贷款余额，贷款余额为698笔2407.77万元。","5300001239296547",109.42,null,109.42,{"$nulls":12},109.42,null,null,"通过为698户脱贫户提供财政贴息，减轻脱贫户的贷款压力，持续巩固脱贫攻坚成果。",904,3742,"按规定可不建立（仅限非经营性项目和到户项目）"]
[17,"其他类","教育帮扶救助项目","县教育和体育局","县教育和体育局","全县",null,"计划实施补充注入县教育扶贫救助基金150万元，根据全县范围内符合条件的脱贫户、监测户子女就学情况，严格按照教育扶贫救助基金管理办法进行补助。","5300001241010987",{"v":150,"d":"150.00"},null,{"v":150,"d":"150.00"},{"$nulls":12},{"v":150,"d":"150.00"},null,null,"该项目实施可有效解决脱贫户及监测对象子女教育保障问题，帮助农村贫困家庭缓解子女就学方面的困难，避免脱贫家庭子女因经济原因失学，进一步隔断贫困代际传递，巩固拓展教育脱贫教攻坚成果，助推乡村振兴。",3986,18018,"按规定可不建立（仅限非经营性项目和到户项目）"]
[18,"其他类","医疗救助项目","县卫生健康局","县卫生健康局","全县",null,"计划实施补充注入县卫生扶贫救助基金160万元。根据全县范围内符合条件的脱贫户、监测户就医情况，严格按照卫生扶贫救助基金管理办法进行补助","5300001239340770",{"v":160,"d":"160.00"},null,{"v":160,"d":"160.00"},{"$nulls":12},{"v":160,"d":"160.00"},null,null,"该项目实施可有效保障脱贫户和监测户基本医疗，防止因病致贫、因病返贫的问题，巩固脱贫成效，衔接推进乡村振兴。",3986,18018,"按规定可不建立（仅限非经营性项目和到户项目）"]
[19,"其他类","公益性岗位安置项目","县人力资源和社会保障局","县人力资源和社会保障局","全县",null,"全县12个乡镇安置脱贫户、监测户公益性岗位530人，每人每月补助500元，项目总投资318万元。","5300001239349071",{"v":318,"d":"318.00"},null,{"v":318,"d":"318.00"},{"$nulls":5},{"v":318,"d":"318.00"},{"$nulls":6},{"v":0,"d":"0.00"},null,null,"该项目实施可有效解决脱贫户、监测户530人的就业问题，每户实现年增收6000元，促进地方经济发展，巩固脱贫成效，衔接推进乡村振兴。",null,530,"按规定可不建立（仅限非经营性项目和到户项目）"]
[20,"①到户奖补类","脱贫人口跨区域务工交通补助项目","县人力资源和社会保障局","县人力资源和社会保障局","全县",null,"计划脱贫户、监测户发放县外省内、省外务工就业一次性铁路、公路和水运（路）交通补助，其中：县外省内人员3个月以上6个月以内每人补助200元，6个月以上每人补助400元；省外务工人员3个月以上6个月以内每人补助800元，6个月以上每人补助1200元。","5300001239349516",{"v":310,"d":"310.00"},null,{"v":310,"d":"310.00"},{"$nulls":5},{"v":250,"d":"250.00"},{"$nulls":5},{"v":10,"d":"10.00"},{"v":50,"d":"50.00"},null,null,"有效提高脱贫户、监测户外出务工交通保障，增加工资性收入，巩固脱贫成果。",null,4100,"按规定可不建立（仅限非经营性项目和到户项目）"]
[21,"其他类","脱贫劳动力就业促进项目","县人力资源和社会保障局","县人力资源和社会保障局、县农业农村局","全县",null,"一是计划组织脱贫人口（监测对象）开展厨师实用技能培训、无人机实用技能培训或对参加“名厨出港”、无人机实用技能培训的脱贫人口（监测对象）等重点群体给予一定政策奖励，计划投资20万元。二是计划对全县监测帮扶对象、脱贫人口开展生产经营和劳动技能等培训（含大丽花、蓝莓等种植户），计划投资40万元。","5300001239420281",{"v":60,"d":"60.00"},null,{"v":60,"d":"60.00"},{"$nulls":5},{"v":50,"d":"50.00"},{"$nulls":6},{"v":10,"d":"10.00"},null,null,"有效提高脱贫户、监测户就业技能水平，提高就业质量，增加工资性收入。",null,174,"按规定可不建立（仅限非经营性项目和到户项目）"]
[22,"①到户奖补类","到户产业巩固提升项目","县农业农村局","各乡（镇）","全县",null,"计划实施全县脱贫户、监测户产业巩固提升，支持发展到户种养殖业，提高生产经营性收入。具体建设内容以上报实施方案及批复为准。","5300001239424186",{"v":300,"d":"300.00"},null,{"v":300,"d":"300.00"},{"v":100,"d":"100.00"},{"$nulls":4},{"v":200,"d":"200.00"},{"$nulls":9},"该项目促进脱贫户、监测户帮扶对象持续稳定增加收入，巩固脱贫成效，防止出现返贫现象。",654,2756,"按规定可不建立（仅限非经营性项目和到户项目）"]
[23,"②产业发展类—产业","精品花卉种植示范基地建设项目","县农业农村局","各乡（镇）","全县",null,"计划实施精品花卉种植示范基地建设项目，支持企业、专合社、家庭农场、大户、大户及散户联合体等发展大丽花或其他花卉产业，配套大棚、水、电等基础设施建设。","5300001256849914",{"v":120,"d":"120.00"},null,{"v":120,"d":"120.00"},{"$nulls":5},{"v":120,"d":"120.00"},{"$nulls":9},"按照“企业+专合社（或家庭农场）+农户”的模式发展精品花卉，可以为脱贫户、监测户提供长期工作岗位，提高村民收益，同时带动全县精品花卉产业高质量发展。",15,60,"通过\"公司+种植基地+农户\"的产业化运作模式，可推动盐边县特色花卉种植规模化发展。该项目的实施可直接带动参与农户年均增收3万-5万元，依托大丽花主题观光园建设，预计可带动周边10余家农家乐及民宿发展，形成农旅融合新业态。\n建立标准化种植示范基地，通过技术培训培养新型职业花农，重点吸纳脱贫户参与，有效解决脱贫户的就业问题，对巩固拓展脱贫攻坚成果同乡村振兴有效衔接有较大的促进作用，具有较好的社会效益。"]
[24,"②产业发展类—产业","南亚热带特色果树种业创新基地—特色果树培育项目（2022年递进项目）","县农业农村局","县农业农村局","桐子林镇","清源社区","计划引进南亚热带特色果树20余类50余个品种（系）试验种植，开展品种适应性观测与筛选以及配套高效栽培技术研发，组织技术培训，为地方筛选特色果树品种和配套高效栽培技术，储备优势果树品种资源，培育新兴果树产业。项目计划总投资133.2万元，工期为2022年—2025年，2025年度计划完成总投资的5%。","5300001239430403",{"v":133.2,"d":"133.20"},null,6.66,{"$nulls":12},6.66,null,126.54,"为地方筛选特色果树品种和配套高效栽培技术，储备优势果树品种资源，培育新兴果树产业。",0,0,"为地方筛选特色果树品种和配套高效栽培技术，储备优势果树品种资源，培育新兴果树产业。","项目建成后，资产确权移交至桐子林镇人民政府进行后续管护"]
[25,"②产业发展类—产业","南亚热带特色果树种业创新基地","县农业农村局","桐子林镇","桐子林镇","清源社区","一是计划实施南亚热带特色果树种业创新基地—果树种质资源收集、保存及创新利用项目，具体建设内容包括：1.规划设计：南亚热带特色果树创新基地建设可行性分析、品种（资源）设计40余种、种植规划等；2.技术指导、现场培训：基地建设30个月，科学施肥技术指导，树体定干及修枝整形现场操作示范培训，专家深入现场不少于6次；3.编制技术资料：收集编制果树通用栽培技术规程及田间技术管理工作要点；40余种果树展示标牌图片、文字等科普介绍资料收集整理并汇编成册；4.种子种苗收集及培育：集中培育管护、检验检疫等；5.基地土地挖穴、回填及苗木定植（约3500株）；6.基地后期管理所需地膜及农资肥料。项目计划总投资180万元，执行期为2024—2026年，其中2025年度计划完成总投资的40%，2024年已落实资金108万元，本次投入财政衔接资金72万元。\n二是计划实施南亚热带特色果树种业创新基地—配套基础设施建设项目，具体建设内容包括：1.60亩山地改田改土（开挖环山行（机耕道）、行面土地平整、建水肥池（100立方米）等）；2.连接基地道路（3.5米宽）水泥硬化926米；3.60亩基地配套建设蓄水池（300立方米）、水肥灌溉系统、监控系统等工程。项目财评价格为110.77万元，2024年已落实资金60万元，本次投入财政衔接资金50.77万元。","5300001240764596\n5300001240779536",290.77,null,122.77,{"$nulls":5},122.77,{"$nulls":8},{"v":168,"d":"168.00"},"项目实施可丰富地方南亚热带果树品种资源，筛选适宜当地发展的特色果树品种，研发配套高效栽培技术，储备优良果树品种资源，建设果树良种良苗繁育供给基地，为培育新兴特色果树产业提供良种良苗及技术支撑。同时，配套基础设施建设可有效改善项目区基础设施条件，为地方新兴特色果树产业发展提供条件保障。",18,72,"项目实施可丰富地方南亚热带果树品种资源，筛选适宜当地发展的特色果树品种，研发配套高效栽培技术，储备优良果树品种资源，建设果树良种良苗繁育供给基地，为培育新兴特色果树产业提供良种良苗及技术支撑。同时，配套基础设施建设可有效改善项目区基础设施条件，为地方新兴特色果树产业发展提供条件保障。","项目建成后，资产确权移交至桐子林镇人民政府进行后续管护"]
[26,"②产业发展类—产业","盐边鹌鹑产业发展综合服务中心项目","县农业农村局","红格镇","红格镇","红格村","计划建设鹌鹑产业发展综合服务中心（二期），包括饲料及蛋品中转仓储设施、屠宰食品初加工、冻库、检验检测及养殖技术培训中心等内容，打造鹌鹑全产业链创富共同体。具体工程量以施工图设计及财评工程量清单为准。","5300001240987257",{"v":200,"d":"200.00"},null,{"v":200,"d":"200.00"},{"v":200,"d":"200.00"},{"$nulls":4},{"v":0,"d":"0.00"},{"$nulls":8},{"v":0,"d":"0.00"},"通过鹌鹑产业发展综合服务中心引领带动，采取“企业+集体经济组织+农户”联农带农发展模式，解决养殖技术、饲料供应、销售渠道等问题，推动发展鹌鹑产业，助力群众增收致富。",55,231,"通过鹌鹑产业发展综合服务中心引领带动，采取“企业+集体经济组织+农户”联农带农发展模式，解决养殖技术、饲料供应、销售渠道等问题，推动发展鹌鹑产业，助力群众增收致富。","项目建成后，资产确权移交至和红格村村集体进行后续管护"]
[27,"③产业发展类—基建","蓝莓基地配套基础设施建设项目","县供销社","红格镇","红格镇","和爱村","计划实施红格镇和爱村顺山组2000亩果园地蓝莓种植基础设施配套项目，一是投入100万元购买部分种苗用于发展集体经济（基层社入股股金）；二是投入40万元完善种植基地水、路配套设施，具体工程量详见施工图设计及财评工程量清单。","5300001240991348",{"v":140,"d":"140.00"},null,{"v":140,"d":"140.00"},{"$nulls":5},{"v":140,"d":"140.00"},{"$nulls":9},"该项目实施可发展壮大村集体经济，同时解决2000亩蓝莓产业园配套设施短板问题。",50,242,"该项目实施可发展壮大村集体经济，同时解决2000亩蓝莓产业园配套设施短板问题。","项目建成后，资产确权移交至和爱村村集体进行后续管护"]
[28,"其他类","金鹌鹑金融供应链平台建设项目","县农业农村局","县农业农村局","全县",null,"九升公司作为核心企业提供鹌鹑苗、饲料、设备等；市农商行提供授信资金，可将贷款利率降至基准利率，同时纳入风险补偿基金贷款；供应链金融平台提供账户开放、资金清算、贷款等服务。","5300001261515497",{"v":30,"d":"30.00"},null,{"v":15,"d":"15.00"},{"$nulls":12},{"v":15,"d":"15.00"},null,{"v":15,"d":"15.00"},"建立供应链金融，保障“金鹌鹑”产业健康发展。",15,45,"按规定可不建立（仅限非经营性项目和到户项目）"]
[29,"②产业发展类—产业","“金叶子”集体经济烤房配套设施建设项目","县农业农村局","红果彝族乡","红果彝族乡","梁子田村、花地村","新建连体烤烟烘烤房，配套地面硬化、设施房、烤房彩钢棚等设施。\n1.梁子田村锅顶凼在原有的15座烤房的基础上，新建连体烤烟烘烤房20座，地面硬化200㎡，烤房彩钢棚设置500㎡，建设回烟配套房屋1套60㎡。\n2.花地村小龙塘组新建连体烤烟烘烤房30座，地面硬化300㎡，烤房彩钢棚设置800㎡，建设回烟配套房屋1套80㎡。\n以上项目具体工程量以施工图设计及财评工程量清单为准。","5300001240894259",{"v":200,"d":"200.00"},null,{"v":100,"d":"100.00"},{"v":80,"d":"80.00"},{"$nulls":4},{"v":20,"d":"20.00"},{"$nulls":8},{"v":100,"d":"100.00"},"项目建成后，形成固定资产归村集体所有，创新“党组织+N”模式，即：“村党组织+土地流转+县企帮引+维护管理+烟蔬轮作+合作共富”，由村党支部牵头，统一集中租赁烤房（主要为烟草烘烤、花椒、桑葚、芒果干烘烤、烤房闲置期利用包谷杆发酵生产平菇菌类）引进承租流转土地，通过租赁和有偿服务等方式提高村集体经济收入，预计年收入约6万元。",25,100,"该项目可辐射周边1000余亩烤烟种植区域，将促进红果彝族乡以烤烟产业发展为主，花椒、桑葚、芒果为辅的“金叶子” 共富试点，项目建设和运营过程中将为村辖脱贫户、监测户等人员提供短期性用工岗位30个，实现短期性务工收入8万余元，通过烟区规划、土地流转、提供就业等方式提高区域烤烟产量和群众经济收入。","项目建成后，资产确权移交至梁子田村、花地村村集体进行后续管护"]
[30,"②产业发展类—产业","标准化羊圈建设项目","县农业农村局","红果彝族乡","红果彝族乡","梁子田村","投入资金20万元实施标准化羊圈建设项目，脱贫户、监测户新建标准化羊圈10座，每座补助2万元。具体工程量以施工图设计及财评工程量清单为准。","5300001240896714",{"v":20,"d":"20.00"},null,{"v":20,"d":"20.00"},{"$nulls":12},{"v":20,"d":"20.00"},null,null,"项目实施可有效解决10户脱贫户、监测户羊圈修建问题，促进地方经济发展，巩固脱贫成效，衔接推进乡村振兴。\n",10,41,"按规定可不建立（仅限非经营性项目和到户项目）","项目建成后，资产确权移交至梁子田村10户受益户进行后续管护"]
[31,"④基建设施类","生产用水水毁修复项目","县农业农村局","红果彝族乡","红果彝族乡","梁子田村","实施生产用水水毁修复项目，新建挡墙18处，共130米；安装φ80镀锌管1000米，三面光水渠修复500米。具体工程量以施工图设计及财评工程量清单为准。","5300001242231646",{"v":30,"d":"30.00"},null,{"v":30,"d":"30.00"},{"$nulls":12},{"v":30,"d":"30.00"},null,null,"项目实施可有效解决农户193户772人，其中脱贫户81户261人种植灌溉问题，覆盖早熟玉米580亩，花椒36亩，促进地方经济发展，巩固脱贫成效，衔接推进乡村振兴。",81,261,"按规定可不建立（仅限非经营性项目和到户项目）","项目建成后，资产确权移交至梁子田村集体进行后续管护"]
[32,"③产业发展类—基建","新建选果棚项目","县农业农村局","红果彝族乡","红果彝族乡","梁子田村","实施选果棚建设项目，在梁子田村机房组、大田坝组、花房组各新建一座钢结构单层选果棚。具体工程量以施工图设计及财评工程量清单为准。","5300001240898904",{"v":55,"d":"55.00"},null,{"v":55,"d":"55.00"},{"$nulls":11},{"v":55,"d":"55.00"},{"$nulls":3},"项目实施可发展壮大村集体经济，有效解决农产品交易问题，促进地方经济发展",41,162,"按规定可不建立（仅限非经营性项目和到户项目）","项目建成后，资产确权移交至梁子田村集体进行后续管护"]
[33,"④基建设施类","水毁道路恢复项目","县农业农村局","红果彝族乡","红果彝族乡","梁子田村","投入资金45万元实施水毁道路恢复项目，新建挡墙1200立方米，具体工程量以施工图设计及财评工程量清单为准。具体工程量以施工图设计及财评工程量清单为准。","5300001240900545",{"v":45,"d":"45.00"},null,{"v":45,"d":"45.00"},{"$nulls":11},{"v":45,"d":"45.00"},{"$nulls":3},"项目实施可有效解决农户125户706人，其中脱贫户102户615人以及梁子田村白沙沟组与锅底荡组的农产品及物资运输问题项目的建设促进地方经济发展，巩固脱贫成效，衔接推进乡村振兴。",102,615,"按规定可不建立（仅限非经营性项目和到户项目）","项目建成后，资产确权移交至梁子田村集体进行后续管护"]
[34,"②产业发展类—产业","三千寨“共富笮坊”建设项目","县农业农村局","共和乡","共和乡","林海村、纳底河村、太田村","盘活林海村1900㎡村部闲置房屋，建设三千寨“共富笮坊”项目，购置榨油设备、改造无菌生产包装车间、成品储物间，统一生产包装腊肉、香肠、野生菌等农特产品，实现收购、生产加工、销售一体化发展，打造“云上共和”特色农副产品品牌。","5300001240726204",{"v":200,"d":"200.00"},null,{"v":200,"d":"200.00"},{"v":160,"d":"160.00"},{"$nulls":4},{"v":40,"d":"40.00"},{"$nulls":9},"该项目实施可有效解决农户312户1279人，其中脱贫户62户283人、监测户3户9人，核桃、青椒等农副产品的销售问题。同时，该项目每年预计能为集体增收34万元，解决农户产品销售难、价格无保障的难题，提高农产品价值和农户种植效益，推动农业产业化发展，助力农民增收致富。",64,261,"项目建成后，通过收购农户产品加工销售，解决农户产品销售难、价格无保障的难题，提高农产品价值和农户种植效益，推动农业产业化发展，助力农民增收致富。","项目建成后，资产确权移交至林海村村、纳底河村、太田村集体进行后续管护"]
[35,"④基建设施类","产业道路硬化项目","县农业农村局","共和乡","共和乡","纳底河村","计划实施纳底河村产业道路硬化4.63公里，砼路面宽3米，其中：村道料场至雷志刚家1.34公里，村道岔路至村卫生室0.65公里，村道岔路至龚家坪子0.84公里，烂柴湾组产业路1.8公里。具体工程量以施工图设计及财评工程量清单为准。","5300001240724572",{"v":150,"d":"150.00"},null,{"v":150,"d":"150.00"},{"$nulls":11},{"v":100,"d":"100.00"},{"v":50,"d":"50.00"},null,null,"该项目实施可有效解决农户104户563人，其中脱贫户46户145人、监测户2户7人的出行问题及桑树15亩、核桃187亩、花椒326亩、玉米415亩的农产品运输问题，促进地方经济发展，巩固脱贫成效，衔接推进乡村振兴。",48,152,"按规定可不建立（仅限非经营性项目和到户项目）","项目建成后，资产确权移交至纳底河村村集体进行后续管护"]
[36,"④基建设施类","农业产业灌溉提灌站建设项目","县农业农村局","共和乡","共和乡","太田村","因太田村红旗大堰受暴雨损毁严重，暂时无法恢复，为解决群众生产生活用水，拟在太田村修建电力提灌站2级，每级扬程225米，配置300立方蓄水池2口，主要建筑物：电机设备、进水池、泵井、泵房、水池、管道等。","5300001240725547",{"v":150,"d":"150.00"},null,{"v":150,"d":"150.00"},{"$nulls":11},{"v":100,"d":"100.00"},{"v":50,"d":"50.00"},null,null,"该项目实施可有效解决太田村487户1725人，农业生产灌溉问题，其中脱贫户59户234人、监测户11户30人，有效推动太田村核桃、青椒及林下中药材产业发展，促进群众增收致富，巩固脱贫成效，衔接推进乡村振兴。",70,264,"按规定可不建立（仅限非经营性项目和到户项目）","项目建成后，资产确权移交至太田村村集体进行后续管护"]
[37,"②产业发展类—产业","荞麦良种和糖心苹果扩繁基地建设项目","县农业农村局","格萨拉彝族乡","格萨拉彝族乡","韭菜坪村","投入资金78.85万元计划实施韭菜坪村建立荞麦良种和糖心苹果扩繁基地共500亩，包括土地整理、组织耕翻、播种、管理，采购农药、肥料及荞子种子5吨、苹果苗5000株。","5300001240721456",78.85,null,78.85,{"$nulls":5},28.85,{"$nulls":6},{"v":50,"d":"50.00"},null,null,"该项目实施可集中连片打造百亩苹果花海、千亩荞麦花海，实现规模化、集约化种植，不断延伸高山农业产业链，围绕“观光经济+果园经济”促进产业纵深转型，助力213户1037人群众共富增收。",8,42,"该项目实施可集中连片打造百亩苹果花海、千亩荞麦花海，实现规模化、集约化种植，不断延伸高山农业产业链，围绕“观光经济+果园经济”促进产业纵深转型，助力213户1037人群众共富增收。","项目建成后，资产确权移交至韭菜坪村村集体进行后续管护"]
[38,"④基建设施类","荞麦良种和糖心苹果扩繁基地建设项目","县农业农村局","格萨拉彝族乡","格萨拉彝族乡","韭菜坪村","计划实施格萨拉彝族乡韭菜坪村荞麦良种和糖心苹果扩繁基地配套水利设施建设项目，新建10立方米取水池1口、200立方米蓄水池4口、500立方米蓄水池1口，架设DN50*3.5焊接钢管13500米。具体工程量以施工图设计及财评工程量清单为准。","5300001280072133",129.93,null,129.93,{"$nulls":5},71.15,{"$nulls":5},58.78,{"$nulls":3},"该项目实施可集中连片打造百亩苹果花海、千亩荞麦花海，实现规模化、集约化种植，不断延伸高山农业产业链，围绕“观光经济+果园经济”促进产业纵深转型，解决群众取水用水难问题，助力213户1037人群众共富增收。",20,81,"按规定可不建立（仅限非经营性项目和到户项目）","项目建成后，资产确权移交至韭菜坪村村集体进行后续管护"]
[39,"④基建设施类","产业道路硬化项目","县农业农村局","格萨拉彝族乡","格萨拉彝族乡","韭菜坪村","计划实施格萨拉彝族乡韭菜坪村荞麦良糖心苹果扩繁基地产业道路硬化1.336公里，砼路面宽3m，厚18cm，配套管涵设施。具体工程量以施工图设计及财评工程量清单为准。","5300001279965257",41.22,null,41.22,{"$nulls":11},41.22,{"$nulls":3},"该项目实施可集中连片打造百亩苹果花海、千亩荞麦花海，实现规模化、集约化种植，不断延伸高山农业产业链，围绕“观光经济+果园经济”促进产业纵深转型，解决群众出行、农产品运输问题，助力213户1037人群众共富增收。",5,22,"按规定可不建立（仅限非经营性项目和到户项目）","项目建成后，资产确权移交至韭菜坪村村集体进行后续管护"]
[40,"④基建设施类","生产用水配套项目","县农业农村局","渔门镇","渔门镇","鳡鱼村","计划实施生产用水配套项目，渔门镇鳡鱼村岔河到杨柳湾提灌站安装2公里90镀锌管。具体工程量以施工图设计及财评工程量清单为准。","5300001244788961",{"v":17,"d":"17.00"},null,{"v":17,"d":"17.00"},{"$nulls":12},{"v":17,"d":"17.00"},null,null,"项目实施可有效解决农户26户124人，芒果400亩灌溉问题，促进地方经济发展，巩固脱贫成效，衔接推进乡村振兴。",5,24,"按规定可不建立（仅限非经营性项目和到户项目）","项目建成后，资产确权移交至鳡鱼村村集体进行后续管护"]
[41,"④基建设施类","农村安全饮水项目","县农业农村局","渔门镇","渔门镇","鳡鱼村","计划实施鳡鱼村侯家坪组新房子饮水改造项目，新建30m³饮水池一座，改造5公里PVC40饮水管。具体工程量以施工图设计及财评工程量清单为准。","5300001244788124",{"v":25,"d":"25.00"},null,{"v":25,"d":"25.00"},{"$nulls":12},{"v":25,"d":"25.00"},null,null,"项目实施可有效解决农户40户135人，其中脱贫户12户61人的饮水问题及核桃60亩、花椒35亩、魔芋40亩的灌溉问题，促进地方经济发展，巩固脱贫成效，衔接推进乡村振兴。",12,61,"按规定可不建立（仅限非经营性项目和到户项目）","项目建成后，资产确权移交至鳡鱼村村集体进行后续管护"]
[42,"④基建设施类","产业道路硬化项目","县农业农村局","渔门镇","渔门镇","鳡鱼村","计划实施渔门镇鳡鱼村岔河组二坪子芒果产业道路改扩建项目，全长2.6公里，路面宽度由3米扩宽至4.5米，厚度18cm。项目财评价为159.43万元，已安排2025年度第一批省级财政衔接资金100万元，本次安排市级财政衔接资金59.43万元。","5300001240826330",159.43,null,159.43,{"$nulls":5},{"v":100,"d":"100.00"},{"$nulls":5},59.43,{"$nulls":3},"项目实施可有效解决农户30户113人，其中脱贫户3户11人、监测户2户7人的出行问题及芒果5000亩的农产品运输问题，促进地方经济发展，巩固脱贫成效，衔接推进乡村振兴。",5,18,"按规定可不建立（仅限非经营性项目和到户项目）","项目建成后，资产确权移交至鳡鱼村村集体进行后续管护"]
[43,"④基建设施类","生产生活用水项目","县农业农村局","渔门镇","渔门镇","鳡鱼村","计划实施渔门镇鳡鱼村大洼组团山生产生活用水项目，新建5立方米取水池1口，新建100立方米蓄水池3口，架设DN89×4.5热镀锌钢管5000米。项目财评价为49.24万元，已安排县级财政衔接资金8万元，本次安排市级财政衔接资金41.24万元。","5300001280054531",49.24,null,49.24,{"$nulls":11},41.24,{"v":8,"d":"8.00"},null,null,"项目可有效解决农户24户112人，芒果500亩的农产品灌溉及人饮问题，促进地方经济发展，巩固脱贫成效，衔接推进乡村振兴。",5,22,"按规定可不建立（仅限非经营性项目和到户项目）","项目建成后，资产确权移交至鳡鱼村村集体进行后续管护"]
[44,"④基建设施类","道路改扩建项目","县农业农村局","红格镇","红格镇","联合村","计划实施红格镇联合村古村落道路改扩建项目，对3.7公里路面进行改扩建，其中K0+000—K2+907段水泥混凝土原局部进行路面病害治理后进行加铺混凝土，本段道路现状路面宽度为4.5m；K2+907至K3+700段将原水泥混凝土道路路面加宽1m后再加铺混凝土，本段道路现状路面宽度为3.5m。具体工程量以施工图设计及财评工程量清单为准。","5300001241008051",{"v":300,"d":"300.00"},null,{"v":300,"d":"300.00"},{"$nulls":12},{"v":300,"d":"300.00"},null,null,"该项目实施可解决农户62户850人，其中脱贫户25户102人的出行及农产品运输问题，促进地方经济发展，巩固脱贫成效，衔接推进乡村振兴。",25,102,"按规定可不建立（仅限非经营性项目和到户项目）","项目建成后，资产确权移交至联合村村集体进行后续管护"]
[45,"④基建设施类","产业道路硬化项目","县农业农村局","红果彝族乡","红果彝族乡","红果村","计划实施红果村红花田至蒿枝坪黑箐产业道路硬化1.3公里，砼路面宽3m、厚18cm，具体工程量以施工图设计及财评工程量清单为准。","5300001240888612",{"v":57,"d":"57.00"},null,{"v":57,"d":"57.00"},{"$nulls":5},{"v":57,"d":"57.00"},{"$nulls":9},"该项目实施可有效解决红果村和蒿枝坪村农户65户240人，其中脱贫户10户52人的出行问题及芒果650亩、玉米1600亩的农产品运输问题，促进地方经济发展，巩固脱贫成效，衔接推进乡村振兴。",10,52,"按规定可不建立（仅限非经营性项目和到户项目）","项目建成后，资产确权移交至红果村村集体进行后续管护"]
[46,"④基建设施类","道路改扩建项目","县农业农村局","新九镇","新九镇","新坝村","计划对新九镇新坝村委会至龙塘段道路路面进行翻修改造1.2公里，对破损路面进行修补，具体工程量以施工图设计及财评工程量清单为准。","5300001241174429",{"v":167.2,"d":"167.20"},null,{"v":167.2,"d":"167.20"},{"v":59.928,"d":"59.93"},{"$nulls":11},{"v":107.272,"d":"107.27"},null,null,"该道路是新坝村、猛粮村的进出的唯一主干道路，项目实施后，可以有效解决新坝村、猛粮村两个村870户3000余人（其中监测户4户8人）的生产出行难问题，解决3500余亩土地的早市蔬菜、芒果等农产品生产、运输、销售难问题，促进地方经济发展，巩固脱贫成效，衔接推进乡村振兴。",4,8,"按规定可不建立（仅限非经营性项目和到户项目）","项目建成后，资产确权移交至新坝村村集体进行后续管护"]
[47,"④基建设施类","和美乡村建设项目","县农业农村局","共和乡","共和乡","雅砻江村","计划实施雅砻江村和美乡村建设，建设内容主要包括道路维修改造，强弱电迁改，新建农产品交易场地等。具体工程量以施工图设计及财评工程量清单为准。","5300001240722816",{"v":377.6,"d":"377.60"},null,{"v":77.6,"d":"77.60"},{"$nulls":5},{"v":77.6,"d":"77.60"},{"$nulls":8},{"v":300,"d":"300.00"},"该项目实施可有效改善雅砻江村基础设施条件，提升农产品交易能力。",25,103,"按规定可不建立（仅限非经营性项目和到户项目）","项目建成后，资产确权移交至雅砻江村村集体进行后续管护"]
[48,"③产业发展类—基建","堰渠三面光建设项目","县农业农村局","红果彝族乡","红果彝族乡","花椒箐村","计划实施花椒箐村红果六组、砍船箐组堰渠三面光建设3000米，采用C20混凝土进行施工。具体工程量以施工图设计及财评工程量清单为准。","5300001245602018",{"v":49,"d":"49.00"},null,{"v":49,"d":"49.00"},{"v":24.222,"d":"24.22"},{"$nulls":4},{"v":24.778,"d":"24.78"},{"$nulls":9},"该项目实施可有效解决600余亩农田灌溉难问题，惠及农户110户 562人，促进地方经济发展，巩固脱贫成效，衔接推进乡村振兴。",5,21,"按规定可不建立（仅限非经营性项目和到户项目）","项目建成后，资产确权移交至花椒箐村村集体进行后续管护"]
[49,"③产业发展类—基建","堰渠三面光建设项目","县农业农村局","渔门镇","渔门镇","狮子堡村","计划实施狮子堡村田坝组河沟至三组新建堰渠3000米，其中：60×60cm修建1300米，40×40cm修建1700米。具体工程量以施工图设计及财评工程量清单为准。","5300001256851936",{"v":45,"d":"45.00"},null,{"v":45,"d":"45.00"},{"$nulls":5},{"v":45,"d":"45.00"},{"$nulls":9},"该项目实施可有效解决500余亩农田灌溉难问题，惠及农户180余户，促进地方经济发展，巩固脱贫成效，衔接推进乡村振兴。",4,20,"按规定可不建立（仅限非经营性项目和到户项目）","项目建成后，资产确权移交至狮子堡村村集体进行后续管护"]
[50,"④基建设施类","生产用水项目","县农业农村局","红格镇","红格镇","金沙村","计划实施金沙村植物克隆及有效成分提取加工生产基地（原金菠萝基地）生产生活用水项目，安装φ200热镀锌管47.3t，管道焊接3000米等工程。具体工程量以施工图设计及财评工程量清单为准。","5300001256856766",{"v":38,"d":"38.00"},null,{"v":38,"d":"38.00"},{"$nulls":5},{"v":38,"d":"38.00"},{"$nulls":9},"该项目实施可促进台创园产业项目规模发展，还可有效解决当地农户80余户近千亩土地的生产用水灌溉，使当地农业生产持续稳定发展。",0,0,"按规定可不建立（仅限非经营性项目和到户项目）","项目建成后，资产确权移交至金沙村村集体进行后续管护"]
[51,"④基建设施类","产业道路硬化项目","县农业农村局","永兴镇","永兴镇","永兴村","计划实施永兴村积谷组产业道路硬化长2公里（216省道林雨贵家至永箐堰），砼路面宽3米、厚18cm，具体工程量以施工图设计及财评工程量清单为准。","5300001241966506",{"v":80,"d":"80.00"},null,{"v":80,"d":"80.00"},{"$nulls":5},{"v":80,"d":"80.00"},{"$nulls":9},"该项目实施可有效解决农户100户302人，其中脱贫户2户5人的出行问题及芒果100亩的农产品运输问题，促进地方经济发展，巩固脱贫成效，衔接推进乡村振兴。",2,5,"按规定可不建立（仅限非经营性项目和到户项目）","项目建成后，资产确权移交至永兴村村集体进行后续管护"]
[52,"②产业发展类—产业","盐边鹌鹑标准化生产基地项目","县农业农村局","红格镇","红格镇","新隆村","计划建设20万羽鹌鹑养殖标准化基地，配套蛋储库、饲料储库、晾粪棚、工作房、进场道路等基础设施。具体工程量以施工图设计及财评工程量清单为准。项目计划总投资300万元，其中：投入2025年第一批县级财政衔接资金50万元，银行贷款资金250万元。","5300001240983427",{"v":300,"d":"300.00"},null,{"v":50,"d":"50.00"},{"$nulls":12},{"v":50,"d":"50.00"},null,{"v":250,"d":"250.00"},"通过鹌鹑养殖标准化基地示范带动，采取“企业+集体经济组织+农户”联农带农发展模式，为鹌鹑养殖户提供考察、学习、实践场地，示范引领发展鹌鹑养殖，助力群众增收致富。",20,81,"按规定可不建立（仅限非经营性项目和到户项目）","项目建成后，资产确权移交至新隆村村集体进行后续管护"]
[53,"④基建设施类","产业道路硬化项目","县农业农村局","渔门镇","渔门镇","双龙村","计划实施双龙村新开田组关山至黑箐产业道路硬化1.5公里、水库组付勤友家至付寿才家产业道路硬化0.35公里，规格：砼路面宽3m，厚18cm，具体工程量以施工图设计及财评工程量清单为准。","5300001240829198",{"v":74,"d":"74.00"},null,{"v":74,"d":"74.00"},{"$nulls":5},{"v":74,"d":"74.00"},{"$nulls":9},"该项目实施可有效解决农户35户171人，其中脱贫户、监测户3户14人出行及180余亩蚕桑运输问题，促进地方经济发展，巩固脱贫成效，衔接推进乡村振兴。",3,14,"按规定可不建立（仅限非经营性项目和到户项目）","项目建成后，资产确权移交至双龙村村集体进行后续管护"]
[54,"④基建设施类","产业道路硬化项目","县农业农村局","国胜乡","国胜乡","大石房社区","计划实施大石房社区河坝组干龙沟产业道路硬化1.7公里，砼路面宽3米、厚18cm，具体工程量以施工图设计及财评工程量清单为准。","5300001240736624",{"v":68,"d":"68.00"},null,{"v":68,"d":"68.00"},{"v":68,"d":"68.00"},{"$nulls":14},"该项目实施可有效解决河坝组30户120人出行问题及花椒200余亩、茶叶200亩、蚕桑100余亩的农产品运输问题，促进地方经济发展，巩固脱贫成效，衔接推进乡村振兴。",2,8,"按规定可不建立（仅限非经营性项目和到户项目）","项目建成后，资产确权移交至大石房村村集体进行后续管护"]
[55,"④基建设施类","农村安全饮水项目","县农业农村局","国胜乡","国胜乡","大石房社区","敷设PEφ63引水管约8400m，起点为红宝乡干坪子村凉水井（已有10m³取水池），终点为国胜乡大石房村白石岩组（已有200m³蓄水池）。","5300001241955909",20.58,null,20.58,{"$nulls":12},20.58,null,null,"切实保障大石房村白石岩组92户368人饮用水安全。",1,4,"按规定可不建立（仅限非经营性项目和到户项目）","项目建成后，资产确权移交至大石房村村集体进行后续管护"]
[56,"④基建设施类","农村安全饮水项目","县农业农村局","温泉彝族乡","温泉彝族乡","四呷左村","计划新建新建50m³蓄水池1口，5m3蓄水池3口，安装PEφ32管22000米、PEφ25管6000米。具体工程量以施工图设计及财评工程量清单为准。","5300001240789669",{"v":25,"d":"25.00"},null,{"v":25,"d":"25.00"},{"v":25,"d":"25.00"},{"$nulls":11},{"v":0,"d":"0.00"},null,null,"该项目实施可有效解决农户62户356人，其中脱贫户22户105人的季节性缺水及生产生活饮水、农产品灌溉问题，促进地方经济发展，巩固脱贫成效，衔接推进乡村振兴。",22,105,"按规定可不建立（仅限非经营性项目和到户项目）","项目建成后，资产确权移交至四呷左村村集体进行后续管护"]
[57,"②产业发展类—产业","省级财政畜牧（肉羊）产业发展项目","县农业农村局","各相关乡（镇）","全县",null,"优选发展好、条件好、意愿强的适度规模养殖场（户）进行提档升级，按照养殖良种化、养殖设施化、生产规范化、防疫制度化、粪污无害化等“五化”要求，以建设标准化圈舍、消毒室、兽医室及粪污收集、处理、利用等配套设施，购置雾化消毒机、青贮打包机等设备，以及品种改良等为突破口，推动我县肉羊产业增量提质。","5300001266407094",{"v":1420,"d":"1420.00"},null,{"v":426,"d":"426.00"},{"$nulls":5},{"v":426,"d":"426.00"},{"$nulls":8},{"v":994,"d":"994.00"},"通过对适度规模养殖场（户）提档升级、示范带动，进一步推进全县肉羊规模养殖，示范带动周边农户种草养羊。项目建成后，项目户将实现年出栏肉羊3200只以上，年销售额预计640万元。",20,101,"按规定可不建立（仅限非经营性项目和到户项目）"]
[58,"④基建设施类","道路改扩建项目","县农业农村局","红格镇","红格镇","联合村","计划实施红格镇联合村道路改扩建项目，从古村落观景台经田湾水库至村子组板板桥，长约5.5公里，将原水泥混凝土道路路面加宽2m后再加铺混凝土，本段道路现状路面宽度为3.5m。具体工程量以施工图设计及财评工程量清单为准。","5300001279976150",{"v":100,"d":"100.00"},null,{"v":100,"d":"100.00"},{"$nulls":11},{"v":100,"d":"100.00"},{"$nulls":3},"该项目实施可解决农户520户2310人，其中脱贫户90户400人的出行及农产品运输问题，促进地方经济发展，巩固脱贫成效，衔接推进乡村振兴。",90,400,"按规定可不建立（仅限非经营性项目和到户项目）","项目建成后，资产确权移交至联合村村集体进行后续管护"]
[59,"③产业发展类—基建","集中式烤烟房修建项目","县农业农村局","格萨拉彝族乡","格萨拉彝族乡","坪原村","计划在坪原村修建烤房群60座，含板房60套，配套地坪硬化、择烟棚搭建、生产管理用房、库房等设施，具体工程量以施工图设计及财评工程量清单为准。","5300001245599601",171.82,null,64.75,64.75,{"$nulls":13},107.07,"带动当地种植烤烟1000亩，促进烤烟产业发展，同时促进农户就近务工就业10余人；通过种植烤烟及修建烤烟房，可吸纳群众就近务工就业5000人次；通过租赁烤烟房，村集体经济收入5万元以上。",12,48,"带动当地种植烤烟1000亩，促进烤烟产业发展；通过种植烤烟及修建烤烟房，可吸纳群众就近务工就业5000人次；通过租赁烤烟房，村集体经济收入5万元以上。"]
[60,"③产业发展类—基建","产业发展配套基础设施建设项目","县农业农村局","红格镇","红格镇","和爱村","计划实施红格镇和爱村100万羽全智能化蛋鸡养殖项目示范基地配套基础设施建设项目，含1公里道路改扩建，在原有道路3米宽的基础上扩宽至5米宽，破损路面修补，配套水利、电力等附属工程。具体工程量以施工图设计及财评工程量清单为准。","5300001279976852",{"v":80,"d":"80.00"},null,{"v":80,"d":"80.00"},{"v":50,"d":"50.00"},{"$nulls":10},{"v":30,"d":"30.00"},{"$nulls":3},"该项目实施可有效解决贵州锦禅农业有限公司100万羽全智能化蛋鸡养殖项目基础设施短板。项目全面建成达产后，可实现年存栏蛋鸡100万羽，年产值达30000万元。通过饲料供应、包装材料、物流运输等上下游产业链协同发展，形成区域经济辐射效应，预计可间接带动配套产业年产值5300万元，进一步推动地方经济联动增长。",4,21,"按规定可不建立（仅限非经营性项目和到户项目）","项目建成后，资产确权移交至和爱村村集体进行后续管护"]
[61,"③产业发展类—基建","农田水利项目","县农业农村局","永兴镇","永兴镇","苍蒲村","计划实施苍蒲村龙湾组农田灌溉饮水项目，从苍蒲村龙湾组烂羊圈取水处架设镀锌钢管1.8公里，直径100CM至基站烤烟水池等工程。具体工程量以施工图设计及财评工程量清单为准。","5300001280058801",{"v":40,"d":"40.00"},null,{"v":40,"d":"40.00"},{"$nulls":11},{"v":40,"d":"40.00"},{"$nulls":3},"复兴村项目实施可有效解决78户280亩群众灌溉用水问题，促进地方经济发展，巩固脱贫成效，衔接推进乡村振兴。\n苍蒲村项目实施可有效解决解决140户230亩土地灌溉问题促进地方经济发展，巩固脱贫成效，衔接推进乡村振兴。",7,28,"按规定可不建立（仅限非经营性项目和到户项目）","项目建成后，资产确权移交至苍蒲村村集体进行后续管护"]
[62,"②产业发展类—产业","精品花卉种植示范基地建设项目","县农业农村局","红格镇","红格镇","鲊石村、联合村","计划在红格镇鲊石村、联合村实施精品花卉种植示范基地建设项目，支持企业发展大丽花，配套大棚、水、电等基础设施建设。","5300001279978369",{"v":50,"d":"50.00"},null,{"v":50,"d":"50.00"},{"$nulls":11},{"v":50,"d":"50.00"},{"$nulls":3},"按照“企业+专合社（或家庭农场）+农户”的模式发展精品花卉，可以为脱贫户、监测户提供长期工作岗位，提高村民收益，同时带动全县精品花卉产业高质量发展。",4,16,"按规定可不建立（仅限非经营性项目和到户项目）"]
[63,"④基建设施类","产业道路硬化项目","县农业农村局","红果彝族乡","红果彝族乡","花椒箐村","计划实施硬化花椒箐村中槽组产业道路1.4公里，砼路面宽3m、厚18cm，具体工程量以施工图设计及财评工程量清单为准。","5300001280046979",{"v":52,"d":"52.00"},null,{"v":52,"d":"52.00"},{"v":42,"d":"42.00"},{"$nulls":10},{"v":10,"d":"10.00"},{"$nulls":3},"该项目实施可有效解决农户45户180人，其中脱贫户9户49人的出行问题及核桃1300余亩、花椒470余亩、玉米420余亩的农产品运输问题，促进地方经济发展，巩固脱贫成效，衔接推进乡村振兴。",9,49,"按规定可不建立（仅限非经营性项目和到户项目）","项目建成后，资产确权移交至花椒箐村村集体进行后续管护"]
[64,"④基建设施类","人畜饮水项目","县农业农村局","格萨拉彝族乡","格萨拉彝族乡","支六河村","计划实施格萨拉彝族乡支六河村下河坝组引水项目，一是将原拦水坝加高，长3.m，加高1.5m、宽1.2m，二是在河道左侧新建一口钢筋混凝土取水池，长13m、宽1.8m，高3.5m，三是新建输水管长4000m（采用DN150热镀锌钢管壁厚4.5mm自流至新建100m³蓄水池中），四是在水池上新建一座装配式泵房（水泵采用DP46-50*8多级泵流量为46m³/h，吸尘管伸入水池内取水，抽水至500立方高位水池），上水管长1500m采用DN125热镀锌钢管壁厚4.5mm。五是从500m³蓄水池新建输水管道输水至3口新建50m³蓄水池，DN100热镀锌管（壁厚4.0mm）管长4780m等工程。具体工程量以施工图设计及财评工程量清单为准。","5300001279970619",{"v":70,"d":"70.00"},null,{"$f":"SUBTOTAL(9,M71:Y71)","v":{"v":70,"d":"70.00"}},16.85,{"$nulls":10},53.15,{"$nulls":3},"项目建成后将彻底解决支六河村下河坝组50户249人的生活用水困难问题，在解决肉牛规模化养殖场缺水问题的同时，为当地1000余亩李子、核桃等经济作物提供稳定生产用水保障，助力特色林果产业发展，推动农民增收。",6,36,"按规定可不建立（仅限非经营性项目和到户项目）","项目建成后，资产确权移交至支六河村村集体进行后续管护"]
[65,"④基建设施类","产业道路硬化项目","县农业农村局","新九镇","新九镇","安宁村","计划实施安宁村坝塘组产业道路共计1568米，其中上坝塘产业路长1200米，下坝塘产业路368米，路基宽4米，水泥路面宽3.5米，据实配套水沟、涵管及挡墙等设施。具体工程量以施工图设计及财评工程量清单为准。","5300001241177290",{"$f":"L72+AA72","v":{"v":63,"d":"63.00"}},null,{"v":63,"d":"63.00"},{"v":43,"d":"43.00"},{"$nulls":10},{"v":20,"d":"20.00"},{"$nulls":3},"该项目实施可有效解决坝塘组130户500余人的生产、生活出行难问题，解决1500余亩土地的早市蔬菜、芒果等农产品生产、运输、销售难问题，促进地方经济发展，巩固脱贫成效，衔接推进乡村振兴。",0,0,"按规定可不建立（仅限非经营性项目和到户项目）","项目建成后，资产确权移交至安宁村村集体进行后续管护"]
[66,"其他类","盐边县生猪大型养殖场视频监控体系建设项目","县农业农村局","县农业农村局、各相关乡（镇）","桐子林镇\n渔门镇\n新九镇\n红果乡\n格萨拉彝族乡","清源社区\n力马村\n平谷村\n三滩村\n坪原村","计划在6家大型养殖场的生产区统一安装具备红外夜视、移动侦测、高清录像功能的网络摄像机，实现养殖生产环节24小时无死角监控。​","5300001280062780",{"v":7.5,"d":"7.50"},null,{"v":7.5,"d":"7.50"},{"$nulls":11},{"v":7.5,"d":"7.50"},{"$nulls":3},"一是提升监管效率，监管人员可通过平台远程实时巡查养殖场，无需频繁现场走访；二是强化风险防控，通过实时监控和异常报警功能，可快速发现生猪异常死亡、违规处置粪污等问题，为非洲猪瘟等疫病防控和生态环境治理提供及时预警；三是规范养殖行为，推动养殖场落实安全生产主体责任，实现养殖过程可追溯，助力我县生猪产业高质量发展。​",15,70,"按规定可不建立（仅限非经营性项目和到户项目）"]
[67,"②产业发展类—产业","盐边县2025年千亿级优势特色农业产业培育项目（芒果）","县农业农村局","县农业农村局、各相关乡（镇）","桐子林镇\n渔门镇\n永兴镇\n红格镇","金河村等\n三源河村\n强胜村\n永渔村、金沙村等","计划推广智慧系统550亩；实施芒果浓缩果汁浆项目、北部芒果加工中心项目、速冻果肉加工项目；开展晚熟芒果果肉溃败防控技术研究、冰芒果生产线配套技术研发等工程。具体工程量以项目实施方案及批复为准。","5300001275127726",{"v":5683,"d":"5683.00"},null,{"v":1200,"d":"1200.00"},{"$nulls":5},{"v":1200,"d":"1200.00"},{"$nulls":8},{"v":4483,"d":"4483.00"},"2025年项目建成后，预计带动芒果老旧果园亩产提升15%，加工产能新增1.2万吨/年，农户通过务工、订单收购等方式人均增收超2000元。直接带动就业岗位150个，培训农户1000人次，为后续产业升级奠定基础。推广新技术100亩，减少化肥农药使用量10%，示范果园土壤有机质含量提升5%。",125,610,"积极采取“3个1”模式（即1个合作社（公司）+1个品种+1个平台），推进锐华1号、锐华3号和热农18号等具有自主知识产权的芒果新品种授权推广3000余亩。芒果新品种推广是采取企业与合作社、合作社与农户分别签订合作协议，一是保证品种资源不外泄，保护公司的知识产权；二是农户不能卖给第三方；三是公司与国内大型商超签订新品种专卖协议，确保在采购、销售方面有定价权。通过新品种的独有优势把控市场话语权，实现农户增收致富，企业增效，助推芒果产业健康发展的目标。","部分资产移交村集体"]
[68,"②产业发展类—产业","盐边县2025年千亿级优势特色农业产业培育项目（蔬菜）","县农业农村局","县农业农村局、红格镇","红格镇","联合村、金沙村、新民村、昔格达村等","计划改造约16亩标准化大棚育苗设施；建设标准化设施大棚约139亩；进行15亩蔬菜全智控种植示范；新建1000立方米冻库一座；魔芋膳食纤维复配生产线12000平方米主体厂房建设；富试验区“酱立方”瓶装酱菜生产车间约260平方米；共富试验区“菇立方”新建冷库600立方米、包装车间300立方米；开展魔芋深加工与多元化产品研发等。​具体工程以项目实施方案及批复为准。","5300001275128794",{"v":2478,"d":"2478.00"},null,{"v":737,"d":"737.00"},{"$nulls":5},{"v":737,"d":"737.00"},{"$nulls":8},{"v":1741,"d":"1741.00"},"2025年项目建成后，新增经济作物“三新”基地面积170余亩；全链条综合产值达220000万元，全链条综合产值年度增幅10%；链主企业年营业收入实现3000万元，链主企业年营业收入增幅10%；区域内联农带农数量410户，联农带农增收10%，为后续产业升级奠定基础。​",94,382,"一是通过土地流转、就业务工等方式，带动红格、渔门等15个乡镇与魔芋产业联结，带动农户种植魔芋1000户，推广种植面积1万亩，鲜芋产量3万吨。提高每户年收入3万元，流转土地约1000余亩，提供就业岗位200余个，参与农户年均增收2万元。二是注重一二三产业融合发展，促进农民增收依托乡村产业发展优势，开发农业多种功能，推动魔芋种植加工全链条升级。"]
[69,"其他类","少数民族特色村寨建设项目","县民宗局","格萨拉彝族乡","格萨拉彝族乡","大坪子村","一是建设占地面积500平方米农产品交易展示中心，预计投资160万元；二是建设产业道路，预计投资70万元；三是农文旅产业提质工程，预计投资45万元；四是民族村寨数字化传承发展工程，预计投资25万元。","5300001246777934",{"v":300,"d":"300.00"},null,{"v":300,"d":"300.00"},null,null,{"v":300,"d":"300.00"},{"$nulls":12},"一是基础设施提升：项目建成后，将改善大坪子村的基础设施条件，特别是旅游接待能力，为游客提供更加便捷、舒适的服务环境。二是文旅产业升级：通过项目的实施，将进一步推动大坪子村文化旅游产业的快速发展，吸引更多游客前来体验，促进旅游经济的增长。三是就业与增收：间接带动更多村民参与旅游服务业，实现就业增收。预计年游客量5万+，按照人均消费100元计算，将带来旅游直接收入500万元，包括餐饮、住宿、停车等，受益村民人数超过1000人，年人均可支配收入有望预测增加1500元。",25,104,"按规定可不建立（仅限非经营性项目和到户项目）","项目建成后，资产确权移交至大坪子村村集体进行后续管护"]
[70,"③产业发展类—基建","苹果园灌溉项目","县民宗局","温泉彝族乡","温泉彝族乡","道角村","计划实施道角村架设管道8500米，其中：架设直径50管道5500米，直径20支管3500米整治，水窖维修6口400立方米，其中：100立方米2口、50立方米4口、果园围栏6000米，架设滴管设施200亩、管道埋设等工程。","5300001240792559",{"v":34,"d":"34.00"},null,{"v":30,"d":"30.00"},null,null,{"v":30,"d":"30.00"},{"$nulls":11},{"v":4,"d":"4.00"},"该项目实施可有效解决农户13户58人（脱贫户4户14人监测户1户5人）的220亩苹果灌溉，促进农户经济增长，并辐射带动该地38户175人加入该产业发展，巩固脱贫成果，衔接推进乡村振兴。",5,19,"按规定可不建立（仅限非经营性项目和到户项目）","项目建成后，资产确权移交至道角村村集体进行后续管护"]
[71,"③产业发展类—基建","产业道路硬化项目","县民宗局","国胜乡","国胜乡","大毕村","计划实施大毕村上田坝组产业道路硬化1080米、厚0.18厘米，其中：宽3.5米650米、宽3米430米；错车道3个、不设置边沟。","5300001240736273",{"v":33,"d":"33.00"},null,{"v":30,"d":"30.00"},null,null,{"v":30,"d":"30.00"},{"$nulls":11},{"v":3,"d":"3.00"},"解决少数民族26户120人的生活出行和产业发展，涉及80亩烤烟，200亩核桃，80亩花椒的管理和运输等。",2,6,"按规定可不建立（仅限非经营性项目和到户项目）","项目建成后，资产确权移交至大毕村村集体进行后续管护"]
[72,"③产业发展类—基建","农田灌溉项目","县民宗局","格萨拉彝族乡","格萨拉彝族乡","支六河村","计划实施支六河村农田灌溉项目，修建30×30灌溉用堰沟350米，新建混凝土挡墙737立方米。","5300001240723883",{"v":35,"d":"35.00"},null,{"v":32,"d":"32.00"},null,null,{"v":32,"d":"32.00"},{"$nulls":11},{"v":3,"d":"3.00"},"项目实施可有效解决农户46户230人(脱贫户21户123人)的153亩农田灌溉问题，促进地方经济发展，巩固脱贫成效，衔接推进乡村振兴。",21,123,"按规定可不建立（仅限非经营性项目和到户项目）","项目建成后，资产确权移交至支六河村村集体进行后续管护"]
[73,"④基建设施类","生产生活用水项目","县民宗局","渔门镇","渔门镇","东风村","新建4口水池402立方米，其中：饮水用引水池1立方米2口、蓄水池200立方米1口、灌溉用200立方米1口；管道架设5000米，其中：PEφ50管200米、PEφ32管4800米、水质检测一项、牵引钢绞线200米（引水口至村民聚居处多为悬崖，需用钢绞线牵引）、管道埋设等工程。 ","5300001240798866",{"v":19.8,"d":"19.80"},null,{"v":19,"d":"19.00"},null,null,{"v":19,"d":"19.00"},{"$nulls":11},{"v":0.8,"d":"0.80"},"项目建成后，将改善项目区30余户90余人（脱贫户2户12人，监测户1户4人）生产生活用水状况及400余亩产业灌溉提供稳定保障，促进各民族农户增产增收，进一步增强各民族之间的凝聚力与向心力,维护民族团结与乡村和谐稳定发展，为民族地区乡村振。",3,16,"按规定可不建立（仅限非经营性项目和到户项目）","项目建成后，资产确权移交至东风村村集体进行后续管护"]
[74,"③产业发展类—基建","产业道路硬化项目","县民宗局","红果彝族乡","红果彝族乡","花椒箐村","硬化小槽组核桃、青椒、产业基地内道路1.2公里：砼路面3.5m宽，18cm厚，设置错车道3处，不设置边沟。","5300001240903128",{"v":41,"d":"41.00"},null,{"v":36,"d":"36.00"},null,null,{"v":36,"d":"36.00"},{"$nulls":11},{"v":5,"d":"5.00"},"解决10户47人（脱贫户5户24人）的300亩核桃、180亩青椒、180亩蚕桑的发展、管理、运输。",5,24,"按规定可不建立（仅限非经营性项目和到户项目）","项目建成后，资产确权移交至花椒箐村村集体进行后续管护"]
[75,"④基建设施类","道路恢复项目","县民宗局","渔门镇","渔门镇","龙胜村","计划实施龙胜村马鹿组产业道路下方垮塌浆砌石挡墙6处940立方米。","5300001240883925",{"v":34,"d":"34.00"},null,{"v":31,"d":"31.00"},null,null,{"v":31,"d":"31.00"},{"$nulls":11},{"v":3,"d":"3.00"},"保障和解决项目地区103户276人（脱贫户9户42人）出行安全及青椒、核桃、玉米、烤烟、芒果等450亩农产品运输畅通。",9,42,"按规定可不建立（仅限非经营性项目和到户项目）","项目建成后，资产确权移交至龙胜村村集体进行后续管护"]
[76,"④基建设施类","道路恢复项目","县民宗局","红宝苗族彝族乡","红宝苗族彝族乡","核桃箐村","新建水毁道路下方垮塌浆砌石挡墙5处896立方米，恢复水毁道路67米、宽3米、厚13厘米。","5300001240812212",{"v":34,"d":"34.00"},null,{"v":30,"d":"30.00"},null,null,{"v":30,"d":"30.00"},{"$nulls":11},{"v":4,"d":"4.00"},"保障和解决项目地区11户50人（脱贫户3户16人）出行安全及50亩青椒、45亩核桃、70亩桑果的农产品运输畅通。",3,16,"按规定可不建立（仅限非经营性项目和到户项目）","项目建成后，资产确权移交至核桃箐村村集体进行后续管护"]
[77,"④基建设施类","农村安全饮水项目","县民宗局","红格镇","红格镇","金沙村","计划实施红格镇金沙村架设镀锌输水管道3000米，其中：φ25mm普通焊管长2000米、φ110mm管道长1000米。","5300001241023193",{"v":11,"d":"11.00"},null,{"v":10,"d":"10.00"},null,null,{"v":10,"d":"10.00"},{"$nulls":11},{"v":1,"d":"1.00"},"该项目实施可有效解决20余人生产生活用水和50亩佛手灌溉问题，能大力推动种植经济发展，巩固脱贫成效，衔接推进乡村振兴。",0,0,"按规定可不建立（仅限非经营性项目和到户项目）","项目建成后，资产确权移交至金沙村村集体进行后续管护"]
[78,"项目管理费","项目管理费","县民宗局","县民宗局","全县",null,"资金主要用于项目管理、业务培训和农牧民技能培训，包括项目规划编制、前期调研、评估论证、检查验收、总结宣传、培训学习、后期评估等与项目管理相关的经费支出和农牧民参与项目实施技能培训。","5300001246773566",{"v":2,"d":"2.00"},null,{"v":2,"d":"2.00"},null,null,{"v":2,"d":"2.00"},{"$nulls":12},"确保项目顺利实施，促进地方经济发展，巩固脱贫成效。",48,126,"按规定可不建立（仅限非经营性项目和到户项目）"]
[79,"其他类","盐边县“阿木诗依”民族手工业融合创新发展项目","县民宗局","红果彝族乡","红果彝族乡","三滩村","一是对对本地民族手工艺进行宣传和保护；二是以现代化、时尚化为导向创新推出民族手工艺产品；三是以数字化赋能民族手工业融合创新发展;四是对民族手工业者开展技艺提升培训和交流展示。","5300001266402717",{"v":51,"d":"51.00"},null,{"v":50,"d":"50.00"},null,null,{"v":50,"d":"50.00"},{"$nulls":11},{"v":1,"d":"1.00"},"全面提升傈僳族民族手工艺，提高阿木诗依品牌影响力和创造力，高质量做实“阿木诗依”文创产品，加强文化交流发展，实现共同发展、共同富裕，促进民族手工艺融合创新发展，优化产业结构、巩固拓展脱贫攻坚成果同乡村振兴有效衔接，推动全县各族人民共同走向共同富裕。",48,126,"按规定可不建立（仅限非经营性项目和到户项目）"]